bitfinex/quotes_SOLUSD_20250708
["timestamp","ask_amount","ask_price","bid_price","bid_amount"]
[1751985218504,5.87547444,151.61,151.58,1.53]
[1751985218800,4.85981469,151.6,151.58,1.53]
[1751985219098,5.87547444,151.61,151.58,1.53]
[1751985219276,4.85869714,151.6,151.58,1.53]
[1751985219477,5.87547444,151.61,151.58,8.12713091]
[1751985219672,12.14292752,151.6,151.58,8.12713091]
[1751985219876,0.06,151.62,151.58,8.12713091]
[1751985220184,4.85796039,151.61,151.58,14.00260535]
[1751985220379,5.93547444,151.62,151.58,14.00260535]
[1751985220583,12.14351715,151.61,151.58,8.12713091]
[1751985220780,4.8582823,151.6,151.58,1.53]
[1751985220982,5.87547444,151.61,151.58,1.53]
[1751985221282,12.14185085,151.6,151.58,1.53]
[1751985221500,5.87547444,151.6,151.58,1.53]
[1751985221911,5.87547444,151.6,151.58,1.56]
[1751985223099,6.59595597,151.61,151.58,1.56]
[1751985223403,18.01579071,151.6,151.58,1.56]
[1751985223575,6.59595597,151.61,151.58,1.56]
[1751985223777,18.01450987,151.6,151.58,1.56]
[1751985223979,5.87547444,151.6,151.58,1.56]
[1751985225198,5.87547444,151.61,151.58,8.15717241]
[1751985225497,5.87547444,151.61,151.58,1.56]
[1751985226908,6.65563125,151.62,151.58,8.15711988]
[1751985227088,18.02155172,151.61,151.58,8.15711988]
[1751985227288,5.87547444,151.61,151.58,8.15711988]
[1751985227494,7.28721899,151.6,151.58,8.15711988]
[1751985227696,5.87547444,151.61,151.58,8.15711988]
[1751985227907,7.28738064,151.6,151.58,8.15711988]
[1751985228105,5.87547444,151.61,151.58,8.15711988]
[1751985228405,7.28738383,151.6,151.58,8.15711988]
[1751985228706,0.06,151.62,151.58,8.15711988]
[1751985228885,18.02177934,151.61,151.58,8.15711988]
[1751985229082,7.28760253,151.6,151.58,8.15711988]
[1751985229285,5.87547444,151.61,151.58,8.15711988]
[1751985229584,5.87547444,151.59,151.58,1.56]
[1751985229786,18.0236101,151.59,151.58,1.56]
[1751985230806,18.02352786,151.59,151.58,1.56]
[1751985233511,12.14805342,151.59,151.58,1.56]
[1751985233692,18.02398488,151.59,151.58,1.56]
[1751985235219,24.62072608,151.59,151.58,1.56]
[1751985235718,18.02398488,151.59,151.58,1.56]
[1751985237217,43.27037494,151.59,151.58,1.56]
[1751985238912,12.14851044,151.59,151.58,1.56]
[1751985239094,7.28888784,151.59,151.58,1.56]
[1751985239296,33.94,151.61,151.58,1.56]
[1751985239602,12.15147952,151.6,151.58,1.56]
[1751985239932,33.94,151.61,151.58,14.03243879]
[1751985240222,33.94,151.61,151.58,8.15696435]
[1751985240434,39.81547444,151.61,151.58,8.15696435]
[1751985240593,5.87547444,151.61,151.58,8.15696435]
[1751985240788,7.29064553,151.6,151.58,8.15696435]
[1751985241088,33.92,151.61,151.58,8.15696435]
[1751985241313,7.29112318,151.6,151.58,8.15696435]
[1751985241610,33.92,151.61,151.58,8.15696435]
[1751985241910,7.29105295,151.6,151.58,8.15696435]
[1751985242092,33.92,151.61,151.58,8.15696435]
[1751985242291,7.28938433,151.6,151.58,8.15696435]
[1751985242523,33.92,151.61,151.58,8.15696435]
[1751985242879,5.93547444,151.62,151.58,14.03243879]
[1751985242880,0.06,151.62,151.58,14.03243879]
[1751985243023,12.1567023,151.61,151.6,5.87547444]
[1751985243202,0.06,151.62,151.6,5.87547444]
[1751985244024,0.06,151.62,151.6,12.47160097]
[1751985245312,0.06,151.62,151.59,6.5967412]
[1751985245511,0.06,151.62,151.6,5.87547444]
[1751985245721,0.06,151.62,151.59,6.5967412]
[1751985246129,0.06,151.62,151.6,5.87547444]
[1751985247230,0.06,151.62,151.61,5.87547444]
[1751985247398,0.06,151.62,151.61,12.47134542]
[1751985247599,0.06,151.62,151.61,6.59587098]
[1751985248718,0.06,151.62,151.61,12.47134542]
[1751985249706,0.06,151.62,151.61,6.59587098]
[1751985249913,0.06,151.62,151.61,12.47134542]
[1751985250314,0.06,151.62,151.61,6.59587098]
[1751985250518,0.06,151.62,151.61,12.47134542]
[1751985251414,0.06,151.62,151.61,6.59587098]
[1751985252601,0.06,151.62,151.58,18.05185595]
[1751985252810,0.06,151.62,151.59,12.47221564]
[1751985254555,0.06,151.62,151.6,5.87547444]
[1751985255434,5.93547444,151.62,151.59,6.5967412]
[1751985255728,0.06,151.62,151.59,12.47221564]
[1751985256431,18.05068797,151.61,151.58,1.56]
[1751985256609,5.87547444,151.6,151.58,1.56]
[1751985256813,33.9,151.61,151.58,1.56]
[1751985256814,5.87547444,151.59,151.58,1.56]
[1751985257014,10.74584285,151.59,151.58,1.56]
[1751985257314,18.04895828,151.59,151.58,1.56]
[1751985258223,24.64569948,151.59,151.58,1.56]
[1751985258517,36.69860714,151.59,151.58,1.56]
[1751985259123,29.39549171,151.59,151.58,1.56]
[1751985259332,36.70059629,151.59,151.58,1.56]
[1751985260426,12.17547299,151.59,151.58,1.56]
[1751985260745,12.17547299,151.59,151.58,14.03265084]
[1751985260917,0.06,151.62,151.58,14.03265084]
[1751985261116,0.06,151.62,151.6,5.87547444]
[1751985262421,0.06,151.62,151.61,6.59587098]
[1751985262621,4.93084656,151.62,151.61,6.59587098]
[1751985262833,0.06,151.62,151.61,6.59587098]
[1751985263141,0.06,151.62,151.6,5.87547444]
[1751985264623,0.06,151.62,151.6,12.47150069]
[1751985265232,0.06,151.62,151.61,5.87547444]
[1751985266338,0.06,151.62,151.61,12.47134542]
[1751985271330,0.06,151.62,151.58,19.60534102]
[1751985271331,0.06,151.62,151.59,12.47221564]
[1751985271539,0.06,151.62,151.58,1.56]
[1751985271540,39.81547444,151.62,151.58,1.56]
[1751985271728,5.87547444,151.61,151.58,1.56]
[1751985272545,7.29665909,151.61,151.58,1.56]
[1751985272871,46.41125811,151.62,151.58,1.56]
[1751985273050,46.41125811,151.62,151.58,7.43547444]
[1751985273238,39.81547444,151.62,151.58,7.43547444]
[1751985273424,39.81547444,151.62,151.58,14.03247496]
[1751985273425,33.94,151.62,151.58,14.03247496]
[1751985274736,33.94,151.62,151.59,5.87547444]
[1751985275345,33.94,151.62,151.58,8.15700052]
[1751985275346,0.06,151.62,151.6,5.87547444]
[1751985275651,0.06,151.62,151.59,5.87547444]
[1751985276644,0.06,151.62,151.59,12.47213512]
[1751985278250,0.06,151.62,151.6,5.87547444]
[1751985278454,0.06,151.62,151.61,5.87547444]
[1751985278633,0.06,151.62,151.61,12.47134542]
[1751985279725,0.06,151.62,151.61,6.59587098]
[1751985280335,0.06,151.62,151.61,12.47134542]
[1751985280737,0.06,151.62,151.61,6.59587098]
[1751985281947,0.06,151.62,151.6,12.47164159]
[1751985282252,0.06,151.62,151.6,6.59616715]
[1751985282458,0.06,151.62,151.59,12.47207496]
[1751985282754,0.06,151.62,151.59,6.59660052]
[1751985282954,0.06,151.62,151.59,12.47207496]
[1751985291960,0.06,151.62,151.59,6.59660052]
[1751985292169,0.06,151.62,151.59,12.47207496]
[1751985293261,0.06,151.62,151.59,6.59660052]
[1751985293444,0.06,151.62,151.59,12.47207496]
[1751985297375,0.06,151.62,151.61,5.87547444]
[1751985297575,7.37844565,151.62,151.61,5.87547444]
[1751985297946,0.06,151.62,151.61,5.87547444]
[1751985299770,0.06,151.62,151.61,12.47134542]
[1751985301275,0.06,151.62,151.61,6.59587098]
[1751985301452,0.06,151.62,151.61,12.47134542]
[1751985302358,0.06,151.62,151.58,1.56]
[1751985302562,0.06,151.62,151.58,7.43547444]
[1751985302563,5.93547444,151.62,151.58,7.43547444]
[1751985302766,0.06,151.62,151.59,5.87547444]
[1751985303481,0.06,151.62,151.59,12.47221564]
[1751985303781,0.06,151.62,151.59,5.87547444]
[1751985303980,5.93547444,151.62,151.58,1.56]
[1751985304277,13.19631836,151.61,151.58,1.56]
[1751985304483,12.20299178,151.6,151.58,1.56]
[1751985304776,4.88214786,151.59,151.58,1.56]
[1751985306468,5.87547444,151.61,151.58,1.56]
[1751985306656,12.21276381,151.6,151.58,1.56]
[1751985306854,5.87547444,151.61,151.58,1.56]
[1751985307058,12.21346216,151.6,151.58,1.56]
[1751985307276,5.87547444,151.61,151.58,1.56]
[1751985307488,12.21443986,151.6,151.58,1.56]
[1751985307672,5.87547444,151.61,151.58,1.56]
[1751985307875,18.09192958,151.6,151.58,1.56]
[1751985308071,12.21645514,151.59,151.58,1.56]
[1751985308886,12.21778678,151.59,151.58,1.56]
[1751985309378,36.74291008,151.59,151.58,1.56]
[1751985309687,43.33965128,151.59,151.58,1.56]
[1751985310403,58.39915128,151.59,151.58,1.56]
[1751985310587,100.8910043,151.59,151.53,3.03]
[1751985310889,5.87547444,151.54,151.53,3.03]
[1751985311186,51.95326122,151.54,151.53,3.03]
[1751985313486,39.73547444,151.54,151.53,3.03]
[1751985319185,64.98404107,151.54,151.53,3.03]
[1751985321197,59.10856663,151.54,151.53,3.03]
[1751985321367,64.98404107,151.54,151.53,3.03]
[1751985322104,39.73547444,151.54,151.53,3.03]
[1751985322273,5.87547444,151.54,151.53,3.03]
[1751985322472,39.73547444,151.54,151.53,3.03]
[1751985322683,33.86,151.54,151.53,3.03]
[1751985322981,33.86,151.56,151.53,8.90547444]
[1751985323385,33.86,151.56,151.53,3.03]
[1751985324106,33.86,151.56,151.53,9.62935326]
[1751985324870,5.87547444,151.54,151.53,3.03]
[1751985325072,39.73547444,151.54,151.53,3.03]
[1751985326086,33.86,151.54,151.53,3.03]
[1751985326978,39.73547444,151.54,151.53,3.03]
[1751985328189,39.47430494,151.54,151.53,3.03]
[1751985331090,33.5988305,151.54,151.53,3.03]
[1751985332888,39.47430494,151.54,151.53,3.03]
[1751985333088,33.86,151.56,151.53,3.03]
[1751985333287,7.06,151.59,151.54,5.87547444]
[1751985333489,7.06,151.59,151.56,5.87547444]
[1751985333730,40.92,151.59,151.57,5.87547444]
[1751985334085,40.92,151.59,151.56,5.87547444]
[1751985334289,7.06,151.59,151.56,5.87547444]
[1751985334491,40.92,151.59,151.56,5.87547444]
[1751985334715,7.06,151.59,151.56,5.87547444]
[1751985334900,40.92,151.59,151.56,5.87547444]
[1751985335234,53.39234205,151.59,151.55,5.87547444]
[1751985335399,5.87547444,151.58,151.54,5.87547444]
[1751985335598,47.51686761,151.59,151.53,15.5047148]
[1751985335599,33.86,151.57,151.53,15.5047148]
[1751985335810,39.73547444,151.57,151.53,15.5047148]
[1751985336407,5.87547444,151.56,151.53,3.03]
[1751985336624,5.87547444,151.55,151.53,3.03]
[1751985336912,39.71547444,151.55,151.53,3.03]
[1751985338324,33.84,151.55,151.53,3.03]
[1751985338488,39.71547444,151.55,151.53,3.03]
[1751985338687,39.71547444,151.55,151.53,9.62935222]
[1751985338916,33.84,151.55,151.53,9.62935222]
[1751985339512,33.84,151.55,151.53,3.03]
[1751985339716,33.84,151.55,151.53,9.62920737]
[1751985341101,33.84,151.55,151.53,3.03]
[1751985341306,33.84,151.55,151.53,9.62934307]
[1751985341698,33.84,151.55,151.53,3.03]
[1751985342429,39.71547444,151.55,151.53,3.03]
[1751985342924,5.87547444,151.54,151.53,3.03]
[1751985343696,31.12404107,151.54,151.53,3.03]
[1751985344200,70.28926021,151.54,151.53,3.03]
[1751985344402,76.73356021,151.54,151.53,3.03]
[1751985345015,70.85808577,151.54,151.53,3.03]
[1751985345427,76.73356021,151.54,151.53,3.03]
[1751985346803,70.85808577,151.54,151.53,3.03]
[1751985351700,70.91808577,151.54,151.53,3.03]
[1751985352603,64.47378577,151.54,151.53,3.03]
[1751985355626,70.34926021,151.54,151.53,3.03]
[1751985356224,64.47378577,151.54,151.53,3.03]
[1751985356831,75.22331319,151.54,151.53,3.03]
[1751985357032,44.64964886,151.51,151.5,0.03]
[1751985357208,103.56892098,151.51,151.5,0.03]
[1751985358113,110.16914538,151.51,151.5,0.03]
[1751985359436,110.16822515,151.51,151.5,0.03]
[1751985361136,18.64964886,151.5,151.46,0.2]
[1751985361316,5.87547444,151.47,151.46,0.2]
[1751985361513,44.58792503,151.47,151.46,0.2]
[1751985362138,51.89400115,151.47,151.46,0.2]
[1751985362437,58.49596853,151.47,151.46,0.2]
[1751985362641,51.18989241,151.47,151.46,0.2]
[1751985362824,58.49346123,151.47,151.46,0.2]
[1751985363337,69.83954127,151.47,151.46,0.2]
[1751985364019,64.96709068,151.47,151.46,0.2]
[1751985364217,77.1351184,151.47,151.46,0.2]
[1751985365737,84.55809284,151.47,151.46,1e-08]
[1751985366243,78.6826184,151.47,151.46,1e-08]
[1751985366428,84.55809284,151.47,151.46,1e-08]
[1751985366629,78.6826184,151.47,151.46,1e-08]
[1751985367539,30.81767658,151.47,151.46,1e-08]
[1751985367712,52.48964886,151.47,151.46,1e-08]
[1751985368642,58.3651233,151.47,151.46,1e-08]
[1751985369146,18.64964886,151.47,151.46,1e-08]
[1751985369321,52.48964886,151.47,151.46,1e-08]
[1751985370037,18.64964886,151.47,151.46,1e-08]
[1751985370228,52.48964886,151.47,151.46,1e-08]
[1751985371146,33.84,151.47,151.46,1e-08]
[1751985372145,51.25090228,151.49,151.46,1e-08]
[1751985372146,26.0,151.49,151.46,5.87547445]
[1751985372533,33.84,151.48,151.46,5.87547445]
[1751985372933,18.64964886,151.5,151.47,5.87547444]
[1751985373143,33.84,151.49,151.47,5.87547444]
[1751985373446,33.84,151.49,151.46,5.87547445]
[1751985373758,33.84,151.49,151.47,5.87547444]
[1751985373956,18.64964886,151.5,151.47,5.87547444]
[1751985374249,33.84,151.5,151.48,5.87547444]
[1751985374543,40.88,151.51,151.49,5.87547444]
[1751985374726,7.04,151.51,151.5,5.87547444]
[1751985375746,7.04,151.51,151.48,6.60134485]
[1751985375928,40.88,151.51,151.49,5.87547444]
[1751985377844,40.88,151.51,151.49,12.47640873]
[1751985378164,7.04,151.51,151.5,5.87547444]
[1751985378730,0.06,151.54,151.5,5.87547444]
[1751985379042,33.82,151.53,151.52,5.87547444]
[1751985379232,33.88,151.54,151.52,5.87547444]
[1751985380050,0.06,151.54,151.52,5.87547444]
[1751985380349,33.88,151.54,151.52,5.87547444]
[1751985381347,33.88,151.54,151.53,5.87547444]
[1751985381647,0.06,151.54,151.53,5.87547444]
[1751985384254,0.06,151.54,151.53,12.4748277]
[1751985388153,0.06,151.54,151.53,6.59935326]
[1751985388358,0.06,151.54,151.53,12.4748277]
[1751985391060,0.06,151.54,151.53,6.59935326]
[1751985391265,0.06,151.54,151.51,12.02447444]
[1751985391457,0.06,151.54,151.5,5.87547444]
[1751985391653,39.73547444,151.54,151.5,5.87547444]
[1751985391849,33.86,151.54,151.49,6.60096908]
[1751985392065,5.87547444,151.53,151.49,5.87547444]
[1751985392362,12.47493537,151.53,151.49,5.87547444]
[1751985392566,5.87547444,151.53,151.49,12.47651886]
[1751985393957,40.45916642,151.54,151.5,5.87547444]
[1751985393958,33.86,151.54,151.5,5.87547444]
[1751985394354,33.86,151.54,151.52,5.87547444]
[1751985394553,0.06,151.53,151.52,5.87547444]
[1751985394955,0.06,151.53,151.51,6.59995696]
[1751985395154,0.06,151.53,151.52,5.87547444]
[1751985395565,0.06,151.53,151.5,26.0]
[1751985395850,0.06,151.53,151.5,5.87547444]
[1751985396549,0.06,151.53,151.51,12.47567579]
[1751985397975,0.06,151.53,151.51,5.87547444]
[1751985399174,0.06,151.53,151.49,6.60109578]
[1751985399549,0.06,151.53,151.51,5.87547444]
[1751985400676,0.06,151.53,151.51,12.47563245]
[1751985401857,0.06,151.53,151.51,5.87547444]
[1751985402172,0.06,151.53,151.49,6.60109539]
[1751985402356,5.93547444,151.53,151.48,6.60139855]
[1751985402671,5.93547444,151.53,151.49,5.87547444]
[1751985402858,0.06,151.53,151.49,5.87547444]
[1751985403058,5.93547444,151.53,151.49,5.87547444]
[1751985403466,5.93547444,151.53,151.49,12.47630535]
[1751985406780,5.87547444,151.52,151.48,5.87547444]
[1751985406983,5.87547444,151.52,151.47,26.0]
[1751985407194,39.67547444,151.52,151.47,31.87547444]
[1751985407488,33.8,151.52,151.5,5.87547444]
[1751985407687,33.8,151.52,151.5,12.47602165]
[1751985411478,0.06,151.53,151.51,5.87547444]
[1751985412176,0.06,151.53,151.51,12.47558726]
[1751985413478,7.37576184,151.53,151.51,12.47558726]
[1751985414484,0.06,151.53,151.51,12.47558726]
[1751985415206,0.06,151.53,151.52,5.87547444]
[1751985415412,4.9433165,151.53,151.52,5.87547444]
[1751985415785,0.06,151.53,151.52,5.87547444]
[1751985417094,0.06,151.53,151.51,6.60011282]
[1751985417286,0.06,151.53,151.52,12.47526324]
[1751985418802,0.06,151.53,151.52,18.35073768]
[1751985422706,1e-08,151.53,151.52,18.35073768]
[1751985422907,0.06,151.62,151.55,26.0]
[1751985423209,12.21150274,151.61,151.55,26.0]
[1751985423403,12.21150274,151.6,151.58,5.87547444]
[1751985423593,6.6555491,151.62,151.58,5.87547444]
[1751985423594,12.21150274,151.59,151.58,5.87547444]
[1751985424388,7.3267771,151.59,151.58,5.87547444]
[1751985424609,7.3267771,151.59,151.58,12.47265084]
[1751985427410,0.06,151.62,151.58,12.47265084]
[1751985427710,7.32376825,151.61,151.58,6.5971764]
[1751985427904,7.32376825,151.6,151.57,16.49307261]
[1751985428105,0.06,151.62,151.57,16.49307261]
[1751985428302,7.32376031,151.61,151.57,16.49307261]
[1751985428506,0.06,151.62,151.57,16.49307261]
[1751985428809,7.32233915,151.61,151.57,16.49307261]
[1751985429122,0.06,151.62,151.6,5.87547444]
[1751985429412,0.06,151.62,151.61,5.87547444]
[1751985430002,0.06,151.62,151.61,12.47134542]
[1751985430995,0.06,151.62,151.59,6.5967412]
[1751985431193,7.37687395,151.62,151.61,5.87547444]
[1751985431394,0.06,151.62,151.61,5.87547444]
[1751985431631,0.06,151.62,151.6,5.87547444]
[1751985432222,7.3753605,151.62,151.6,5.87547444]
[1751985432618,7.3753605,151.62,151.61,5.87547444]
[1751985432799,0.06,151.62,151.61,5.87547444]
[1751985433198,7.3728461,151.62,151.59,12.47193177]
[1751985433426,13.24832054,151.62,151.58,5.87547444]
[1751985433605,7.3128461,151.61,151.58,5.87547444]
[1751985434188,7.3128461,151.61,151.56,6.59804697]
[1751985434393,7.30968427,151.6,151.57,5.87547444]
[1751985435090,6.59604541,151.61,151.57,5.87547444]
[1751985435405,7.30821275,151.6,151.57,5.87547444]
[1751985435605,12.5310742,151.62,151.56,6.59804697]
[1751985435910,7.30712115,151.61,151.56,6.59804697]
[1751985436291,13.90306535,151.61,151.58,5.87547444]
[1751985436494,7.30712115,151.6,151.58,5.87547444]
[1751985436994,12.53105345,151.62,151.58,5.87547444]
[1751985437211,7.30537354,151.61,151.58,5.87547444]
[1751985437518,7.30537354,151.6,151.58,5.87547444]
[1751985437718,5.93547444,151.62,151.58,5.87547444]
[1751985438041,7.30568674,151.61,151.58,5.87547444]
[1751985438498,7.30568674,151.61,151.58,12.47254596]
[1751985439319,7.30568674,151.61,151.59,5.87547444]
[1751985439688,7.30568674,151.61,151.58,5.87547444]
[1751985440401,7.30568674,151.61,151.56,6.59804697]
[1751985440718,7.30568674,151.61,151.58,5.87547444]
[1751985440916,7.30568674,151.6,151.56,5.87547444]
[1751985441294,7.30568674,151.6,151.55,32.59830228]
[1751985441503,7.30568674,151.59,151.56,5.87547444]
[1751985442032,5.87547444,151.6,151.56,12.47327638]
[1751985442201,7.30686239,151.59,151.57,5.87547444]
[1751985442402,12.47147534,151.61,151.57,5.87547444]
[1751985442614,7.3064078,151.6,151.56,6.59780194]
[1751985442824,5.87547444,151.61,151.57,5.87547444]
[1751985443124,7.30659254,151.6,151.57,5.87547444]
[1751985443314,7.30659254,151.6,151.56,6.59780194]
[1751985443509,7.30659254,151.6,151.57,5.87547444]
[1751985444001,46.29108747,151.62,151.57,12.47307111]
[1751985444203,7.30875813,151.61,151.57,12.47307111]
[1751985444412,7.30875813,151.6,151.57,12.47307111]
[1751985444606,46.29108747,151.62,151.57,12.47307111]
[1751985444816,7.30989648,151.61,151.57,12.47307111]
[1751985445124,7.30989648,151.6,151.57,12.47307111]
[1751985445333,7.30989648,151.6,151.55,26.0]
[1751985445334,46.29108747,151.62,151.58,5.87547444]
[1751985445649,7.31110722,151.61,151.58,5.87547444]
[1751985445829,7.31110722,151.6,151.58,5.87547444]
[1751985445996,0.06,151.62,151.59,5.87547444]
[1751985446308,7.31120003,151.61,151.56,6.59804697]
[1751985446808,7.31120003,151.61,151.56,23.09316441]
[1751985447534,7.31120003,151.61,151.59,5.87547444]
[1751985447713,13.18667447,151.61,151.57,5.87547444]
[1751985448127,19.78255827,151.61,151.57,5.87547444]
[1751985448325,12.47135824,151.61,151.57,5.87547444]
[1751985448630,13.1875032,151.6,151.56,12.47352141]
[1751985448941,5.87547444,151.57,151.53,5.90547444]
[1751985449331,5.87547444,151.56,151.53,0.03]
[1751985449534,5.87547444,151.55,151.53,0.03]
[1751985450105,13.18621105,151.55,151.53,0.03]
[1751985450306,5.87547444,151.55,151.53,0.03]
[1751985450906,13.18670191,151.55,151.53,0.03]
[1751985451120,5.87547444,151.55,151.53,0.03]
[1751985451530,13.18543442,151.55,151.53,0.03]
[1751985452336,5.87547444,151.55,151.53,0.03]
[1751985453735,7.31383683,151.54,151.53,0.03]
[1751985454307,5.87547444,151.55,151.53,0.03]
[1751985454743,20.22194886,151.58,151.53,0.03]
[1751985454918,13.91155057,151.57,151.53,0.03]
[1751985455238,13.18923328,151.56,151.53,0.03]
[1751985455549,5.87547444,151.56,151.53,0.03]
[1751985455937,13.19066429,151.56,151.53,0.03]
[1751985456248,26.81927027,151.58,151.53,0.03]
[1751985456249,41.20777444,151.58,151.54,5.87547444]
[1751985456420,7.31550024,151.57,151.54,5.87547444]
[1751985456762,5.87547444,151.57,151.53,5.90547444]
[1751985457532,41.20777444,151.58,151.54,12.47415024]
[1751985457846,7.31567264,151.57,151.55,5.87547444]
[1751985458143,39.63547444,151.59,151.55,5.87547444]
[1751985458350,7.31580485,151.58,151.56,5.87547444]
[1751985458651,7.02,151.6,151.57,5.87547444]
[1751985458846,7.32021472,151.59,151.58,5.87547444]
[1751985460572,7.32021472,151.59,151.56,6.59784968]
[1751985460758,7.32021472,151.58,151.57,5.87547444]
[1751985461143,7.32021472,151.58,151.56,12.47332412]
[1751985461456,12.89547444,151.6,151.56,12.47332412]
[1751985461648,7.32406379,151.59,151.56,12.47332412]
[1751985461960,7.32406379,151.58,151.56,12.47332412]
[1751985462133,19.49179414,151.6,151.56,12.47332412]
[1751985462334,7.32422681,151.59,151.56,12.47332412]
[1751985462526,7.32422681,151.58,151.56,12.47332412]
[1751985462734,7.02,151.6,151.57,5.87547444]
[1751985463060,7.32467265,151.59,151.56,23.09296712]
[1751985463241,0.06,151.62,151.58,5.87547444]
[1751985463441,7.32586131,151.61,151.56,23.09296712]
[1751985463639,0.06,151.62,151.56,23.09296712]
[1751985463827,7.32634809,151.61,151.56,23.09296712]
[1751985464027,0.06,151.62,151.56,23.09296712]
[1751985464232,7.32576125,151.61,151.56,16.49511744]
[1751985464453,0.06,151.62,151.56,16.49511744]
[1751985464657,7.32596226,151.61,151.56,16.49511744]
[1751985464967,0.06,151.62,151.6,5.87547444]
[1751985465140,7.32597602,151.61,151.6,5.87547444]
[1751985466240,7.32597602,151.61,151.6,12.4717805]
[1751985466861,0.06,151.62,151.6,12.4717805]
[1751985467769,0.06,151.62,151.61,5.87547444]
[1751985467946,7.39069968,151.62,151.6,12.4717805]
[1751985468266,0.06,151.62,151.6,12.4717805]
[1751985469142,7.33004186,151.61,151.6,12.4717805]
[1751985469854,7.33004186,151.61,151.6,5.87547444]
[1751985470058,7.33004186,151.61,151.59,12.47202713]
[1751985470256,0.06,151.62,151.59,12.47202713]
[1751985470456,7.32787826,151.61,151.59,12.47202713]
[1751985470659,0.06,151.62,151.59,12.47202713]
[1751985470858,7.32740468,151.61,151.59,12.47202713]
[1751985471059,0.06,151.62,151.59,12.47202713]
[1751985471274,7.32705526,151.61,151.59,12.47202713]
[1751985471581,0.06,151.62,151.59,12.47202713]
[1751985471744,7.3266798,151.61,151.59,12.47202713]
[1751985472062,0.06,151.62,151.6,5.87547444]
[1751985472273,7.32681498,151.61,151.6,5.87547444]
[1751985473344,7.32681498,151.61,151.6,12.4717805]
[1751985473561,0.06,151.62,151.6,12.4717805]
[1751985473871,0.06,151.62,151.61,5.87547444]
[1751985474159,7.38834404,151.62,151.61,5.87547444]
[1751985474865,0.06,151.62,151.61,5.87547444]
[1751985475448,0.06,151.62,151.61,12.47134542]
[1751985478252,0.06,151.62,151.61,6.59587098]
[1751985478449,0.06,151.62,151.61,12.47134542]
[1751985484350,1e-08,151.63,151.61,38.47134542]
[1751985484654,1e-08,151.63,151.62,5.87547444]
[1751985486571,1e-08,151.63,151.62,12.47091039]
[1751985486887,1e-08,151.63,151.62,9.9726647]
[1751985487051,1e-08,151.63,151.62,15.84813914]
[1751985490085,1e-08,151.63,151.62,9.9726647]
[1751985490276,1e-08,151.63,151.62,15.84813914]
[1751985494791,1e-08,151.63,151.62,15.84813914]
[1751985498491,1e-08,151.63,151.62,49.56813914]
[1751985499289,1e-08,151.63,151.62,43.6926647]
[1751985499489,1e-08,151.63,151.62,49.56813914]
[1751985500487,1e-08,151.63,151.62,68.217788]
[1751985500692,1e-08,151.63,151.62,68.87733159]
[1751985502998,1e-08,151.63,151.62,68.90733159]
[1751985503176,1e-08,151.63,151.62,63.03185715]
[1751985503495,1e-08,151.63,151.62,68.90733159]
[1751985506092,1e-08,151.63,151.62,35.18733159]
[1751985506302,1e-08,151.63,151.62,68.88733159]
[1751985508880,0.1,151.69,151.68,5.87547444]
[1751985509192,0.1,151.69,151.68,12.46830144]
[1751985509576,0.1,151.69,151.68,6.592827]
[1751985509903,0.1,151.69,151.68,12.46830144]
[1751985511796,0.1,151.69,151.68,6.592827]
[1751985512098,0.1,151.69,151.68,12.46830144]
[1751985512997,0.1,151.69,151.68,6.592827]
[1751985513297,0.1,151.69,151.68,12.46830144]
[1751985515304,0.1,151.69,151.67,6.59326168]
[1751985515499,0.1,151.69,151.68,5.87547444]
[1751985516392,0.1,151.69,151.68,12.46830144]
[1751985516591,0.1,151.69,151.68,38.46830144]
[1751985518202,0.1,151.69,151.68,32.592827]
[1751985518403,0.1,151.69,151.68,38.46830144]
[1751985524417,0.1,151.69,151.68,72.14830144]
[1751985527316,0.1,151.69,151.68,6.592827]
[1751985527520,0.1,151.69,151.68,12.46830144]
[1751985533596,0.1,151.69,151.68,6.592827]